fUST/lending_fUST_20251001
["ID","MTS","AMOUNT","RATE_DAILY","PERIOD"]
[388672259,1759313455339,-658.19,0.0002,2]
[388672260,1759313455348,-170.386274,0.0002,2]
[388672261,1759313455358,-500.0,0.0002,2]
[388672262,1759313455368,-500.0,0.0002,2]
[388672263,1759313455377,-423.2954103,0.0002,2]
[388672264,1759313455386,-500.0,0.0002,2]
[388672265,1759313455397,-500.0,0.0002,2]
[388672266,1759313455406,-1206.09,0.0002,2]
[388672267,1759313455415,-996.59,0.0002,2]
[388672268,1759313455425,-1373.03,0.0002,2]
[388672269,1759313455435,-500.0,0.0002,2]
[388672270,1759313455445,-500.0,0.0002,2]
[388672271,1759313455455,-3165.83,0.0002,2]
[388672272,1759313455466,-1181.97,0.0002,2]
[388672273,1759313455477,-782.85,0.0002,2]
[388672274,1759313455486,-1295.66,0.0002,2]
[388672275,1759313455496,-500.0,0.0002,2]
[388672276,1759313455506,-151.0,0.0002,2]
[388672277,1759313455515,-500.0,0.0002,2]
[388672278,1759313455524,-500.0,0.0002,2]
[388672279,1759313455534,-500.0,0.0002,2]
[388672280,1759313455543,-484.08200638,0.0002,2]
[388672281,1759313455552,-151.0,0.0002,2]
[388672282,1759313455562,-1029.47,0.0002,2]
[388672283,1759313455571,-151.0,0.0002,2]
[388672284,1759313455581,-369.33444499,0.0002,2]
[388672285,1759313455591,-500.0,0.0002,2]
[388672286,1759313455600,-500.0,0.0002,2]
[388672287,1759313455610,-151.0,0.0002,2]
[388672288,1759313455619,-515.04,0.0002,2]
[388672289,1759313455628,-500.0,0.0002,2]
[388672290,1759313455638,-1888.19,0.0002,2]
[388672291,1759313455648,-903.96,0.0002,2]
[388672292,1759313455657,-439.04688599,0.0002,2]
[388672293,1759313455667,-500.0,0.0002,2]
[388672294,1759313455676,-500.0,0.0002,2]
[388672295,1759313455686,-645.87,0.0002,2]
[388672296,1759313455696,-157.950582,0.0002,2]
[388672297,1759313455706,-500.0,0.0002,2]
[388672298,1759313455715,-2998.81,0.0002,2]
[388672299,1759313455725,-500.0,0.0002,2]
[388672300,1759313455734,-500.0,0.0002,2]
[388672301,1759313455743,-1734.48,0.0002,2]
[388672302,1759313455752,-500.0,0.0002,2]
[388672303,1759313455761,-500.0,0.0002,2]
[388672304,1759313455772,-500.0,0.0002,2]
[388672305,1759313455781,-1411.59,0.0002,2]
[388672306,1759313455790,-500.0,0.0002,2]
[388672307,1759313455799,-500.0,0.0002,2]
[388672308,1759313455808,-740.79,0.0002,2]
[388672309,1759313455818,-1000.0,0.0002,2]
[388672310,1759313455828,-500.0,0.0002,2]
[388672311,1759313455838,-500.0,0.0002,2]
[388672312,1759313455847,-351.80716402,0.0002,2]
[388672313,1759313455856,-269.81913984,0.0002,2]
[388672314,1759313455865,-992.76,0.0002,2]
[388672315,1759313455874,-425.09809606,0.0002,2]
[388672316,1759313455885,-500.0,0.0002,2]
[388672317,1759313455895,-423.98728009,0.0002,2]
[388672318,1759313455904,-500.0,0.0002,2]
[388672319,1759313455913,-425.9045976,0.0002,2]
[388672320,1759313455922,-262.33673221,0.0002,2]
[388672321,1759313455932,-500.0,0.0002,2]
[388672322,1759313455941,-500.0,0.0002,2]
[388672323,1759313455950,-3974.55,0.0002,2]
[388672324,1759313455959,-541.57,0.0002,2]
[388672325,1759313455968,-500.0,0.0002,2]
[388672326,1759313455978,-500.0,0.0002,2]
[388672327,1759313455987,-500.0,0.0002,2]
[388672328,1759313455998,-545.5,0.0002,2]
[388672329,1759313456007,-500.0,0.0002,2]
[388672330,1759313456129,-500.0,0.0002,2]
[388672331,1759313456139,-415.08703391,0.0002,2]
[388672332,1759313456149,-151.0,0.0002,2]
[388672333,1759313456160,-154.918579,0.0002,2]
[388672334,1759313456169,-500.0,0.0002,2]
[388672335,1759313456179,-500.0,0.0002,2]
[388672336,1759313456188,-500.0,0.0002,2]
[388672337,1759313456198,-157.294397,0.0002,2]
[388672338,1759313456208,-500.0,0.0002,2]
[388672339,1759313456218,-1555.59,0.0002,2]
[388672340,1759313456228,-500.0,0.0002,2]
[388672341,1759313456237,-634.21,0.0002,2]
[388672342,1759313456246,-500.0,0.0002,2]
[388672343,1759313456255,-500.0,0.0002,2]
[388672344,1759313456265,-500.0,0.0002,2]
[388672345,1759313456274,-500.0,0.0002,2]
[388672346,1759313456283,-3240.37,0.0002,2]
[388672347,1759313456292,-577.05231505,0.0002,2]
[388672348,1759313456302,-1181.3,0.0002,2]
[388672349,1759313456317,-455.17054848,0.0002,2]
[388672350,1759313456326,-1630.64,0.0002,2]
[388672351,1759313456335,-211.808476,0.0002,2]
[388672352,1759313456344,-404.02029042,0.0002,2]
[388672353,1759313456355,-500.0,0.0002,2]
[388672354,1759313456364,-500.0,0.0002,2]
[388672355,1759313456373,-500.0,0.0002,2]
[388672356,1759313456383,-1213.28,0.0002,2]
[388672357,1759313456392,-500.0,0.0002,2]
[388672358,1759313456402,-151.0,0.0002,2]
[388672359,1759313456411,-582.95,0.0002,2]
[388672360,1759313456421,-151.0,0.0002,2]
[388672361,1759313456431,-500.0,0.0002,2]
[388672362,1759313456440,-151.0,0.0002,2]
[388672363,1759313456449,-500.0,0.0002,2]
[388672364,1759313456459,-765.97,0.0002,2]
[388672365,1759313456468,-500.0,0.0002,2]
[388672366,1759313456477,-837.02,0.0002,2]
[388672367,1759313456486,-500.0,0.0002,2]
[388672368,1759313456495,-500.0,0.0002,2]
[388672369,1759313456504,-500.0,0.0002,2]
[388672370,1759313456513,-884.28,0.0002,2]
[388672371,1759313456523,-500.0,0.0002,2]
[388672372,1759313456532,-169.871241,0.0002,2]
[388672373,1759313456541,-500.0,0.0002,2]
[388672374,1759313456551,-500.0,0.0002,2]
[388672375,1759313456560,-518.48,0.0002,2]
[388672376,1759313456569,-1079.71,0.0002,2]
[388672377,1759313456578,-500.0,0.0002,2]
[388672378,1759313456587,-335.26776425,0.0002,2]
[388672379,1759313456596,-500.0,0.0002,2]
[388672380,1759313456605,-500.0,0.0002,2]
[388672381,1759313456615,-500.0,0.0002,2]
[388672382,1759313456624,-4574.16,0.0002,2]
[388672383,1759313456634,-500.0,0.0002,2]
[388672384,1759313456643,-866.19,0.0002,2]
[388672385,1759313456653,-500.0,0.0002,2]
[388672386,1759313456662,-2952.94,0.0002,2]
[388672387,1759313456671,-500.0,0.0002,2]
[388672388,1759313456681,-2377.38,0.0002,2]
[388672389,1759313456690,-924.86,0.0002,2]
[388672390,1759313456699,-663.37,0.0002,2]
[388672391,1759313456709,-500.0,0.0002,2]
[388672392,1759313456718,-500.0,0.0002,2]
[388672393,1759313456727,-4347.91,0.0002,2]
[388672394,1759313456736,-500.0,0.0002,2]
[388672395,1759313456746,-1063.86,0.0002,2]
[388672396,1759313456755,-817.91,0.0002,2]
[388672397,1759313456764,-13596.8,0.0002,2]
[388672398,1759313456774,-500.0,0.0002,2]
[388672399,1759313456783,-2347.65,0.0002,2]
[388672400,1759313456792,-1170.22,0.0002,2]
[388672401,1759313456802,-542.85,0.0002,2]
[388672402,1759313456810,-500.0,0.0002,2]
[388672403,1759313456821,-435.22077893,0.0002,2]
[388672404,1759313456830,-500.0,0.0002,2]
[388672405,1759313456839,-831.98,0.0002,2]
[388672406,1759313456848,-500.0,0.0002,2]
[388672407,1759313456858,-500.0,0.0002,2]
[388672408,1759313456867,-810.92,0.0002,2]
[388672409,1759313456876,-1077.3,0.0002,2]
[388672410,1759313456886,-2091.33,0.0002,2]
[388672411,1759313456895,-502.63,0.0002,2]
[388672412,1759313456904,-525.38,0.0002,2]
[388672413,1759313456913,-500.0,0.0002,2]
[388672414,1759313456923,-430.73298399,0.0002,2]
[388672415,1759313456932,-1988.74,0.0002,2]
[388672416,1759313456941,-500.0,0.0002,2]
[388672417,1759313456949,-500.0,0.0002,2]
[388672418,1759313456958,-633.46,0.0002,2]
[388672419,1759313456967,-5404.18,0.0002,2]
[388672420,1759313456976,-4119.01,0.0002,2]
[388672421,1759313456985,-251.81219487,0.0002,2]
[388672422,1759313456994,-500.0,0.0002,2]
[388672423,1759313457003,-500.0,0.0002,2]
[388672424,1759313457013,-960.51,0.0002,2]
[388672425,1759313457022,-1053.83,0.0002,2]
[388672426,1759313457031,-1539.85,0.0002,2]
[388672427,1759313457040,-1933.08,0.0002,2]
[388672428,1759313457050,-500.0,0.0002,2]
[388672429,1759313457058,-1111.97,0.0002,2]
[388672430,1759313457068,-1038.31,0.0002,2]
[388672431,1759313457077,-2522.32,0.0002,2]
[388672432,1759313457086,-725.94,0.0002,2]
[388672433,1759313457094,-500.0,0.0002,2]
[388672434,1759313457104,-1908.23,0.0002,2]
[388672435,1759313457113,-846.91,0.0002,2]
[388672436,1759313457122,-500.0,0.0002,2]
[388672437,1759313457131,-151.0,0.0002,2]
[388672438,1759313457140,-151.0,0.0002,2]
[388672439,1759313457150,-500.0,0.0002,2]
[388672440,1759313457159,-500.0,0.0002,2]
[388672441,1759313457168,-2615.25,0.0002,2]
[388672442,1759313457178,-1718.53,0.0002,2]
[388672443,1759313457187,-2181.37,0.0002,2]
[388672444,1759313457196,-500.0,0.0002,2]
[388672445,1759313457205,-1789.62,0.0002,2]
[388672446,1759313457214,-1566.23,0.0002,2]
[388672447,1759313457223,-500.0,0.0002,2]
[388672448,1759313457232,-699.54,0.0002,2]
[388672449,1759313457240,-2212.33,0.0002,2]
[388672450,1759313457249,-3679.55,0.0002,2]
[388672451,1759313457258,-500.0,0.0002,2]
[388672452,1759313457267,-740.14,0.0002,2]
[388672453,1759313457276,-766.66,0.0002,2]
[388672454,1759313457284,-1590.72,0.0002,2]
[388672455,1759313457294,-500.0,0.0002,2]
[388672456,1759313457303,-1278.42,0.0002,2]
[388672457,1759313457314,-500.0,0.0002,2]
[388672458,1759313457323,-588.76724094,0.0002,2]
[388672459,1759313457332,-3491.149292,0.0002,2]
[388672460,1759313457341,-151.0,0.0002,2]
[388672461,1759313457351,-3491.149292,0.0002,2]
[388672462,1759313457360,-151.0,0.0002,2]
[388672463,1759313457370,-500.0,0.0002,2]
[388672464,1759313457379,-3491.149292,0.0002,2]
[388672465,1759313457390,-500.0,0.0002,2]
[388672466,1759313457399,-3491.149292,0.0002,2]
[388672467,1759313457409,-1686.96,0.0002,2]
[388672468,1759313457418,-2397.74,0.0002,2]
[388672469,1759313457427,-181.055094,0.0002,2]
[388672470,1759313457437,-500.0,0.0002,2]
[388672471,1759313457446,-151.0,0.0002,2]
[388672472,1759313457455,-831.34,0.0002,2]
[388672473,1759313457464,-500.0,0.0002,2]
[388672474,1759313457473,-500.0,0.0002,2]
[388672475,1759313457482,-500.0,0.0002,2]
[388672476,1759313457491,-3430.68,0.0002,2]
[388672477,1759313457500,-1290.72,0.0002,2]
[388672478,1759313457509,-500.0,0.0002,2]
[388672479,1759313457519,-532.51,0.0002,2]
[388672480,1759313457527,-500.0,0.0002,2]
[388672481,1759313457537,-500.0,0.0002,2]
[388672482,1759313457547,-2009.25,0.0002,2]
[388672483,1759313457556,-5588.63,0.0002,2]
[388672484,1759313457565,-151.0,0.0002,2]
[388672485,1759313457574,-1091.56,0.0002,2]
[388672486,1759313457583,-2058.63,0.0002,2]
[388672487,1759313457592,-500.0,0.0002,2]
[388672488,1759313457601,-624.66,0.0002,2]
[388672489,1759313457610,-723.22,0.0002,2]
[388672490,1759313457620,-1850.45,0.0002,2]
[388672491,1759313457629,-718.71,0.0002,2]
[388672492,1759313457638,-500.0,0.0002,2]
[388672493,1759313457647,-642.87530596,0.0002,2]
[388672494,1759313457657,-2970.72,0.0002,2]
[388672495,1759313457666,-500.0,0.0002,2]
[388672496,1759313457676,-883.6,0.0002,2]
[388672497,1759313457685,-500.0,0.0002,2]
[388672498,1759313457695,-753.51,0.0002,2]
[388672499,1759313457705,-2608.33,0.0002,2]
[388672500,1759313457714,-500.0,0.0002,2]
[388672501,1759313457724,-151.0,0.0002,2]
[388672502,1759313457733,-151.0,0.0002,2]
[388672503,1759313457743,-500.0,0.0002,2]
[388672504,1759313457752,-500.0,0.0002,2]
[388672505,1759313457761,-973.06,0.0002,2]
[388672506,1759313457771,-500.0,0.0002,2]
[388672507,1759313457781,-2268.53,0.0002,2]
[388672508,1759313457790,-2234.58,0.0002,2]
[388672509,1759313457799,-500.0,0.0002,2]
[388672510,1759313457809,-615.23,0.0002,2]
[388672511,1759313457818,-2899.74,0.0002,2]
[388672512,1759313457827,-1420.33,0.0002,2]
[388672513,1759313457837,-500.0,0.0002,2]
[388672514,1759313457847,-500.0,0.0002,2]
[388672515,1759313457856,-4163.6,0.0002,2]
[388672516,1759313457865,-500.0,0.0002,2]
[388672517,1759313457874,-151.0,0.0002,2]
[388672518,1759313457884,-921.19,0.0002,2]
[388672519,1759313457893,-864.89,0.0002,2]
[388672520,1759313457903,-1067.34,0.0002,2]
[388672521,1759313457912,-584.22093868,0.0002,2]
[388672522,1759313457921,-2495.81,0.0002,2]
[388672523,1759313457930,-943.03,0.0002,2]
[388672524,1759313457939,-632.76,0.0002,2]
[388672525,1759313457948,-1419.15,0.0002,2]
[388672526,1759313457957,-1529.22,0.0002,2]
[388672527,1759313457967,-500.0,0.0002,2]
[388672528,1759313457976,-6604.53,0.0002,2]
[388672529,1759313457986,-500.0,0.0002,2]
[388672530,1759313457995,-500.0,0.0002,2]
[388672531,1759313458004,-151.0,0.0002,2]
[388672532,1759313458013,-2119.75,0.0002,2]
[388672533,1759313458022,-425.79536773,0.0002,2]
[388672534,1759313458031,-1234.48,0.0002,2]
[388672535,1759313458040,-500.0,0.0002,2]
[388672536,1759313458050,-500.0,0.0002,2]
[388672537,1759313458059,-500.0,0.0002,2]
[388672538,1759313458070,-2381.04,0.0002,2]
[388672539,1759313458080,-2114.75,0.0002,2]
[388672540,1759313458090,-875.67,0.0002,2]
[388672541,1759313458099,-5800.09,0.0002,2]
[388672542,1759313458108,-1107.88,0.0002,2]
[388672543,1759313458117,-1867.26,0.0002,2]
[388672544,1759313458126,-161.121168,0.0002,2]
[388672545,1759313458136,-151.0,0.0002,2]
[388672546,1759313458145,-500.0,0.0002,2]
[388672547,1759313458154,-151.0,0.0002,2]
[388672548,1759313458163,-2897.33,0.0002,2]
[388672549,1759313458172,-500.0,0.0002,2]
[388672550,1759313458181,-164.724016,0.0002,2]
[388672551,1759313458190,-500.0,0.0002,2]
[388672552,1759313458200,-4000.0,0.0002,4]
[388672553,1759313458210,-1000.0,0.00020021,2]
[388672554,1759313458221,-504.16551314,0.00020021,2]
[388672555,1759313458231,-221.14958848,0.00020021,2]
[388672556,1759313458240,-1000.0,0.00020021,2]
[388672557,1759313458250,-1000.0,0.00020021,2]
[388672558,1759313458259,-1002.61971287,0.00020021,2]
[388672559,1759313458268,-1000.0,0.00020021,2]
[388672560,1759313458277,-1000.0,0.00020021,2]
[388672561,1759313458287,-1002.37760947,0.00020021,2]
[388672562,1759313458296,-1000.0,0.00020021,2]
[388672563,1759313458417,-575.41832241,0.00020021,2]
[388672564,1759313458426,-1000.0,0.00020021,2]
[388672565,1759313458436,-1000.0,0.00020021,2]
[388672566,1759313458446,-605.54277074,0.00020021,2]
[388672567,1759313458455,-1000.0,0.00020021,2]
[388672568,1759313458463,-1000.0,0.00020021,2]
[388672569,1759313458472,-1000.0,0.00020021,2]
[388672570,1759313458481,-502.66302311,0.00020021,2]
[388672571,1759313458491,-1000.0,0.00020021,2]
[388672572,1759313458501,-1000.0,0.00020021,2]
[388672573,1759313458510,-1000.0,0.00020021,2]
[388672574,1759313458519,-1000.0,0.00020021,2]
[388672575,1759313458528,-1000.0,0.00020021,2]
[388672576,1759313458538,-598.01499122,0.00020021,2]
[388672577,1759313458547,-1000.0,0.00020021,2]
[388672578,1759313458557,-1000.0,0.00020021,2]
[388672579,1759313458566,-1000.0,0.00020021,2]
[388672580,1759313458575,-1000.0,0.00020021,2]
[388672581,1759313458583,-672.03502859,0.00020021,2]
[388672582,1759313458593,-1000.0,0.00020021,2]
[388672583,1759313458602,-1000.0,0.00020021,2]
[388672584,1759313458612,-1000.0,0.00020021,2]
[388672585,1759313458621,-273.33965458,0.00020021,2]
[388672586,1759313458631,-1000.0,0.00020021,2]
[388672587,1759313458640,-1000.0,0.00020021,2]
[388672588,1759313458649,-1000.0,0.00020021,2]
[388672589,1759313458658,-1000.0,0.00020021,2]
[388672590,1759313458667,-1000.0,0.00020021,2]
[388672591,1759313458677,-1000.0,0.00020021,2]
[388672592,1759313458687,-1000.0,0.00020021,2]
[388672593,1759313458696,-413.1103713,0.00020021,2]
[388672594,1759313458705,-1000.0,0.00020021,2]
[388672595,1759313458715,-557.0,0.00020053,2]
[388672596,1759313458724,-500.0,0.00020071,2]
[388672597,1759313458733,-189.695374,0.00020071,2]
[388672598,1759313458742,-151.0,0.00020071,2]
[388672599,1759313458750,-750.87,0.00020071,2]
[388672600,1759313458759,-2265.48,0.00020071,2]
[388672601,1759313458768,-549.1,0.00020071,2]
[388672602,1759313458776,-500.0,0.00020072,2]
[388672603,1759313458785,-1138.52,0.00020072,2]
[388672604,1759313458794,-173.47,0.00020072,2]
[388672605,1759313458803,-610.07,0.00020072,2]
[388672606,1759313458811,-151.0,0.00020072,2]
[388672607,1759313458820,-151.0,0.00020072,2]
[388672608,1759313458832,-168.0,0.00020081,2]
[388672609,1759313458842,-151.0,0.000201,4]
[388672610,1759313458851,-178.61695,0.0002011,13]
[388672611,1759313458859,-151.0,0.00020132,2]
[388672612,1759313458868,-151.0,0.00020132,2]
[388672613,1759313458877,-151.0,0.00020132,2]
[388672614,1759313458888,-151.0,0.00020132,2]
[388672615,1759313458898,-151.0,0.00020132,2]
[388672616,1759313458908,-151.0,0.00020132,2]
[388672617,1759313458917,-1000.0,0.00020132,2]
[388672618,1759313458926,-151.0,0.00020132,2]
[388672619,1759313458936,-500.0,0.00020132,2]
[388672620,1759313458945,-151.0,0.00020132,2]
[388672621,1759313458954,-160.0,0.00020133,2]
[388672622,1759313458963,-1439.71726545,0.0002016,2]
[388672623,1759313458972,-151.0,0.00020173,2]
[388672624,1759313458982,-151.0,0.00020173,2]
[388672625,1759313458991,-186.096365,0.00020173,2]
[388672626,1759313459000,-151.0,0.000202,4]
[388672627,1759313459009,-1622.61944715,0.00020249,2]
[388672628,1759313459018,-151.0,0.00020262,2]
[388672629,1759313459027,-866.33195918,0.00020268,2]
[388672630,1759313459036,-1500.0,0.00020268,2]
[388672631,1759313459046,-1500.0,0.00020268,2]
[388672632,1759313459055,-1500.0,0.00020268,2]
[388672633,1759313459064,-1500.0,0.00020268,2]
[388672634,1759313459074,-1500.0,0.00020268,2]
[388672635,1759313459083,-1155.8260691,0.00020268,2]
[388672636,1759313459092,-1500.0,0.00020268,2]
[388672637,1759313459102,-1500.0,0.00020268,2]
[388672638,1759313459111,-1500.0,0.00020268,2]
[388672639,1759313459121,-502.43559663,0.00020268,2]
[388672640,1759313459131,-1500.0,0.00020268,2]
[388672641,1759313459141,-1500.0,0.00020268,2]
[388672642,1759313459151,-500.0,0.00020273,2]
[388672643,1759313459161,-1014.38,0.00020273,2]
[388672644,1759313459171,-500.0,0.00020273,2]
[388672645,1759313459180,-571.58,0.00020273,2]
[388672646,1759313459189,-500.0,0.00020273,2]
[388672647,1759313459198,-500.0,0.00020273,2]
[388672648,1759313459208,-841.29,0.00020273,2]
[388672649,1759313459217,-500.0,0.00020273,2]
[388672650,1759313459226,-500.0,0.00020273,2]
[388672651,1759313459236,-500.0,0.00020273,2]
[388672652,1759313459245,-500.0,0.00020273,2]
[388672653,1759313459254,-500.0,0.00020273,2]
[388672654,1759313459264,-500.0,0.00020273,2]
[388672655,1759313459273,-749.55,0.00020273,2]
[388672656,1759313459283,-1052.97,0.00020273,2]
[388672657,1759313459293,-370.57669334,0.00020273,2]
[388672658,1759313459302,-976.03,0.00020273,2]
[388672659,1759313459313,-500.0,0.00020273,2]
[388672660,1759313459323,-500.0,0.00020273,2]
[388672661,1759313459333,-561.75,0.00020273,2]
[388672662,1759313459344,-1101.84,0.00020273,2]
[388672663,1759313459354,-500.0,0.00020273,2]
[388672664,1759313459367,-500.0,0.00020273,2]
[388672665,1759313459383,-1020.46,0.00020273,2]
[388672666,1759313459395,-500.0,0.00020273,2]
[388672667,1759313459404,-494.9007129,0.00020273,2]
[388672668,1759313459413,-500.0,0.00020273,2]
[388672669,1759313459423,-694.4,0.00020273,2]
[388672670,1759313459432,-745.06,0.00020273,2]
[388672671,1759313459441,-500.0,0.00020273,2]
[388672672,1759313459451,-500.0,0.00020273,2]
[388672673,1759313459460,-658.19,0.00020273,2]
[388672674,1759313459471,-500.0,0.00020273,2]
[388672675,1759313459481,-500.0,0.00020273,2]
[388672676,1759313459490,-378.74249108,0.00020273,2]
[388672677,1759313459499,-500.0,0.00020273,2]
[388672678,1759313459509,-1206.09,0.00020273,2]
[388672679,1759313459518,-996.59,0.00020273,2]
[388672680,1759313459527,-1373.03,0.00020273,2]
[388672681,1759313459537,-500.0,0.00020273,2]
[388672682,1759313459547,-500.0,0.00020273,2]
[388672683,1759313459556,-3165.83,0.00020273,2]
[388672684,1759313459566,-1181.97,0.00020273,2]
[388672685,1759313459576,-782.85,0.00020273,2]
[388672686,1759313459585,-1295.66,0.00020273,2]
[388672687,1759313459595,-500.0,0.00020273,2]
[388672688,1759313459606,-500.0,0.00020273,2]
[388672689,1759313459615,-500.0,0.00020273,2]
[388672690,1759313459625,-500.0,0.00020273,2]
[388672691,1759313459635,-1029.47,0.00020273,2]
[388672692,1759313459645,-500.0,0.00020273,2]
[388672693,1759313459654,-500.0,0.00020273,2]
[388672694,1759313459663,-515.04,0.00020273,2]
[388672695,1759313459673,-153.72855784,0.00020273,2]
[388672696,1759313459682,-1888.19,0.00020273,2]
[388672697,1759313459692,-903.96,0.00020273,2]
[388672698,1759313459701,-500.0,0.00020273,2]
[388672699,1759313459710,-500.0,0.00020273,2]
[388672700,1759313459720,-645.87,0.00020273,2]
[388672701,1759313459729,-500.0,0.00020273,2]
[388672702,1759313459738,-2998.81,0.00020273,2]
[388672703,1759313459748,-500.0,0.00020273,2]
[388672704,1759313459757,-1734.48,0.00020273,2]
[388672705,1759313459766,-500.0,0.00020273,2]
[388672706,1759313459775,-500.0,0.00020273,2]
[388672707,1759313459785,-500.0,0.00020273,2]
[388672708,1759313459794,-1411.59,0.00020273,2]
[388672709,1759313459803,-500.0,0.00020273,2]
[388672710,1759313459814,-500.0,0.00020273,2]
[388672711,1759313459823,-740.79,0.00020273,2]
[388672712,1759313459833,-1010.17160294,0.00020273,2]
[388672713,1759313459842,-500.0,0.00020273,2]
[388672714,1759313459851,-500.0,0.00020273,2]
[388672715,1759313459860,-992.76,0.00020273,2]
[388672716,1759313459871,-500.0,0.00020273,2]
[388672717,1759313459880,-500.0,0.00020273,2]
[388672718,1759313459889,-500.0,0.00020273,2]
[388672719,1759313459900,-500.0,0.00020273,2]
[388672720,1759313459909,-3974.55,0.00020273,2]
[388672721,1759313459919,-541.57,0.00020273,2]
[388672722,1759313459928,-500.0,0.00020273,2]
[388672723,1759313459937,-500.0,0.00020273,2]
[388672724,1759313459947,-395.80825854,0.00020273,2]
[388672725,1759313459956,-545.5,0.00020273,2]
[388672726,1759313459965,-500.0,0.00020273,2]
[388672727,1759313459978,-151.0,0.00020273,2]
[388672728,1759313459988,-500.0,0.00020273,2]
[388672729,1759313459998,-500.0,0.00020273,2]
[388672730,1759313460008,-500.0,0.00020273,2]
[388672731,1759313460017,-500.0,0.00020273,2]
[388672732,1759313460027,-1555.59,0.00020273,2]
[388672733,1759313460037,-500.0,0.00020273,2]
[388672734,1759313460047,-634.21,0.00020273,2]
[388672735,1759313460057,-500.0,0.00020273,2]
[388672736,1759313460066,-332.57946058,0.00020273,2]
[388672737,1759313460075,-500.0,0.00020273,2]
[388672738,1759313460090,-500.0,0.00020273,2]
[388672739,1759313460100,-3240.37,0.00020273,2]
[388672740,1759313460110,-1181.3,0.00020273,2]
[388672741,1759313460118,-1630.64,0.00020273,2]
[388672742,1759313460127,-500.0,0.00020273,2]
[388672743,1759313460137,-500.0,0.00020273,2]
[388672744,1759313460146,-500.0,0.00020273,2]
[388672745,1759313460155,-1213.28,0.00020273,2]
[388672746,1759313460165,-500.0,0.00020273,2]
[388672747,1759313460174,-582.95,0.00020273,2]
[388672748,1759313460184,-500.0,0.00020273,2]
[388672749,1759313460193,-500.0,0.00020273,2]
[388672750,1759313460202,-765.97,0.00020273,2]
[388672751,1759313460212,-500.0,0.00020273,2]
[388672752,1759313460221,-837.02,0.00020273,2]
[388672753,1759313460231,-500.0,0.00020273,2]
[388672754,1759313460239,-500.0,0.00020273,2]
[388672755,1759313460248,-500.0,0.00020273,2]
[388672756,1759313460257,-884.28,0.00020273,2]
[388672757,1759313460267,-500.0,0.00020273,2]
[388672758,1759313460276,-500.0,0.00020273,2]